bitfinex-derivatives/quotes_SOLF0:USTF0_20241107
["timestamp","ask_amount","ask_price","bid_price","bid_amount"]
[1731004213715,6.85078121,196.03,195.93,14.08090008]
[1731004213922,2.5484,196.01,195.97,2.5489]
[1731004214122,2.5484,196.01,195.93,14.08090008]
[1731004214823,2.5487,196.0,195.93,14.08090008]
[1731004215316,6.85078121,196.05,195.93,14.08090008]
[1731004215518,14.08090008,196.03,195.94,3.66]
[1731004216825,2.5489,195.98,195.94,6.2093]
[1731004219227,2.5487,195.99,195.95,2.5491]
[1731004219824,14.08090008,196.05,195.94,3.66]
[1731004220022,14.08090008,196.05,195.94,6.2092]
[1731004220821,2.5489,195.98,195.94,3.66]
[1731004221327,2.5489,195.97,195.94,6.2093]
[1731004221626,14.08090008,196.05,195.94,6.2093]
[1731004222021,2.5489,195.98,195.94,6.2093]
[1731004222631,14.08090008,196.05,195.94,17.74090008]
[1731004222825,2.5486,196.0,195.96,2.549]
[1731004223731,14.08090008,196.05,195.96,2.549]
[1731004224117,14.08090008,196.05,195.94,17.74090008]
[1731004224322,14.08090008,196.05,195.94,6.2093]
[1731004224829,14.08090008,196.05,195.92,3.7409]
[1731004224830,14.08090008,196.02,195.92,3.66]
[1731004225028,14.08090008,196.0,195.9,3.66]
[1731004225234,14.08090008,196.0,195.88,14.08090008]
[1731004225418,14.08090008,196.0,195.9,2.5498]
[1731004225625,14.08090008,196.0,195.89,3.66]
[1731004226127,2.5493,195.95,195.91,2.5497]
[1731004226327,14.08090008,196.0,195.91,2.5497]
[1731004226634,3.7084,196.06,195.93,2.5494]
[1731004226823,14.08090008,196.04,195.92,14.08090008]
[1731004227225,2.549,195.97,195.92,14.08090008]
[1731004227626,2.5486,196.0,195.96,2.549]
[1731004228625,2.5487,195.99,195.96,2.549]
[1731004229033,18.85612206,196.16,195.95,17.74090008]
[1731004229335,14.08090008,196.08,196.0,2.5485]
[1731004230231,14.08090008,196.08,195.98,2.5487]
[1731004230431,6.82439697,196.13,195.98,2.5487]
[1731004230640,14.08090008,196.09,195.97,17.74090008]
[1731004230824,2.5483,196.03,195.98,2.5487]
[1731004231938,5.0937,196.14,195.97,17.74090008]
[1731004232143,2.548,196.04,195.99,2.5486]
[1731004232432,14.08090008,196.1,195.99,2.5486]
[1731004232842,2.5482,196.03,195.99,2.5486]
[1731004233238,14.08090008,196.1,196.0,2.5485]
[1731004233536,2.5481,196.04,196.0,2.5485]
[1731004234335,1.2318,196.17,196.0,14.08090008]
[1731004234538,2.5477,196.07,196.03,2.5481]
[1731004234837,2.5477,196.07,196.03,6.2081]
[1731004236130,18.85612206,196.25,196.04,2.5479]
[1731004236337,14.08090008,196.14,196.04,2.5479]
[1731004236737,2.5475,196.08,196.04,2.5479]
[1731004237043,14.08090008,196.14,196.02,2.5595]
[1731004237340,14.08090008,196.14,196.03,3.66]
[1731004238437,2.5477,196.07,196.03,6.2081]
[1731004238845,14.08090008,196.14,196.03,3.66]
[1731004239436,2.5477,196.07,196.02,5.1078]
[1731004239738,14.08090008,196.11,196.03,3.66]
[1731004240244,2.5479,196.05,196.03,3.66]
[1731004240735,2.548,196.05,196.03,3.66]
[1731004240935,2.548,196.05,196.01,1.2518]
[1731004241233,2.548,196.05,196.02,3.66]
[1731004241429,14.08090008,196.11,195.92,2.5898]
[1731004241636,14.08090008,196.08,195.97,14.08090008]
[1731004242140,2.5484,196.02,195.97,16.62970008]
[1731004242340,14.08090008,196.06,195.97,3.64]
[1731004242537,14.08090008,196.06,195.96,3.64]
[1731004242847,2.5489,195.97,195.96,3.64]
[1731004243345,2.5488,195.99,195.94,2.5493]
[1731004243547,14.08090008,196.03,195.94,6.1893]
[1731004244640,2.5488,195.98,195.95,2.5491]
[1731004245636,15.28200008,196.09,195.94,3.64]
[1731004245840,14.08090008,196.06,195.95,14.08090008]
[1731004246036,2.5485,196.01,195.96,2.549]
[1731004246240,2.5485,196.01,195.95,14.08090008]
[1731004246444,1.2011,196.09,195.97,14.08090008]
[1731004246833,1.2011,196.09,195.94,3.64]
[1731004247144,1.2011,196.09,195.97,14.08090008]
[1731004247145,15.28200008,196.09,195.97,14.08090008]
[1731004247440,1.2011,196.09,196.0,14.08090008]
[1731004247647,2.5834,196.1,196.01,3.64]
[1731004248843,2.5478,196.07,196.01,6.1884]
[1731004249040,2.5834,196.1,196.01,3.64]
[1731004249446,2.5477,196.07,196.01,6.1884]
[1731004250751,2.5834,196.1,196.01,3.64]
[1731004251251,14.08090008,196.12,196.01,3.64]
[1731004251437,14.08090008,196.12,196.01,4.9773]
[1731004251643,2.5475,196.09,196.03,2.548]
[1731004252352,2.5475,196.08,196.04,2.5479]
[1731004252649,14.08090008,196.12,196.01,4.9773]
[1731004253042,2.5474,196.1,196.01,4.9773]
[1731004253349,14.08090008,196.12,196.01,4.9773]
[1731004253839,14.08090008,196.12,196.02,1.3508]
[1731004255141,2.5475,196.09,196.04,2.548]
[1731004255853,2.5473,196.1,196.04,2.548]
[1731004256150,14.08090008,196.12,196.04,2.548]
[1731004256544,14.08090008,196.12,196.01,2.5763]
[1731004256745,7.6173,196.18,196.02,3.64]
[1731004256941,2.5246,196.18,196.02,3.64]
[1731004257148,14.08090008,196.14,196.02,3.64]
[1731004257346,14.08090008,196.11,196.02,3.64]
[1731004257549,2.5479,196.05,196.01,3.64]
[1731004257853,14.08090008,196.11,196.01,3.64]
[1731004258152,2.548,196.05,196.01,3.64]
[1731004259247,2.548,196.05,196.0,3.64]
[1731004259756,2.548,196.05,196.0,6.1885]
[1731004260059,14.08090008,196.1,196.0,3.64]
[1731004260253,14.08090008,196.1,196.0,6.1885]
[1731004260453,14.08090008,196.1,196.0,3.64]
[1731004260654,2.5479,196.05,196.0,3.64]
[1731004260853,14.08090008,196.1,196.0,3.64]
[1731004260854,14.08090008,196.1,196.04,2.5479]
[1731004261056,14.08090008,196.1,196.0,3.64]
[1731004261556,9.00754162,196.03,195.97,9.00754162]
[1731004261750,2.5485,196.01,195.97,9.00754162]
[1731004262152,9.00754162,196.03,195.96,2.549]
[1731004262356,9.00754162,196.03,195.97,9.00754162]
[1731004262551,6.51483445,196.09,195.97,9.00754162]
[1731004262753,6.51483445,196.09,195.97,11.55644162]
[1731004262953,9.00754162,196.03,195.97,11.55644162]
[1731004263359,14.07807021,196.05,195.95,3.64]
[1731004264051,14.07807021,196.05,195.94,0.21529]
[1731004264454,2.5487,195.99,195.94,2.76449]
[1731004265257,2.5487,195.99,195.95,2.5492]
[1731004265454,2.5488,195.98,195.94,0.21529]
[1731004266050,2.5488,195.98,195.94,2.76459]
[1731004266356,14.07807021,196.07,195.95,14.07807021]
[1731004266657,14.07807021,196.04,195.96,2.549]
[1731004267557,2.5484,196.01,195.96,2.549]
[1731004268052,2.5484,196.01,195.94,0.21529]
[1731004268252,14.07807021,196.06,195.95,14.07807021]
[1731004270357,3.9026,196.09,195.97,14.07807021]
[1731004270358,16.65327021,196.09,195.97,14.07807021]
[1731004270556,19.17037021,196.19,195.94,0.21529]
[1731004270557,14.07807021,196.12,196.0,14.07807021]
[1731004270756,14.07807021,196.12,196.03,2.548]
[1731004272060,14.07807021,196.12,196.01,3.64]
[1731004272254,14.07807021,196.09,195.99,3.64]
[1731004272460,14.07807021,196.09,195.95,14.07807021]
[1731004272461,14.07807021,196.06,195.95,14.07807021]
[1731004272765,14.07807021,196.06,195.97,2.5489]
[1731004275358,2.5486,196.0,195.96,2.549]
[1731004275764,14.07807021,196.04,195.96,2.549]
[1731004276162,14.07807021,196.04,195.93,3.64]
[1731004276674,2.5488,195.98,195.94,2.5492]
[1731004277065,14.07807021,196.04,195.94,2.5492]
[1731004277271,14.07807021,196.01,195.92,3.64]
[1731004277772,2.549,195.97,195.93,2.5494]
[1731004278274,2.5492,195.96,195.92,3.64]
[1731004278571,14.07807021,196.01,195.92,3.64]
[1731004279073,2.549,195.97,195.93,2.5494]
[1731004279372,14.07807021,196.01,195.93,2.5494]
[1731004280468,14.07807021,195.98,195.91,2.5497]
[1731004280775,1.2915,196.07,195.87,0.20051]
[1731004280776,2.5116,196.0,195.87,0.20051]
[1731004280976,14.07807021,195.96,195.87,0.20051]
[1731004281178,2.5495,195.93,195.89,2.5499]
[1731004281482,14.07807021,195.96,195.87,0.20051]
[1731004281675,14.07807021,195.96,195.88,2.5501]
[1731004283281,2.5496,195.93,195.88,2.5501]
[1731004284679,2.5496,195.92,195.88,2.5501]
[1731004286887,2.5497,195.91,195.88,2.5501]
[1731004288590,2.5492,195.95,195.9,2.5498]
[1731004288984,2.5491,195.96,195.9,2.5498]
[1731004289183,14.07807021,195.98,195.9,2.5498]
[1731004289786,9.01407817,195.97,195.91,9.01407817]
[1731004289982,9.01407817,195.97,195.92,2.5495]
[1731004290185,2.5492,195.96,195.91,9.01407817]
[1731004290582,2.5492,195.96,195.93,9.01407817]
[1731004290786,1.3183,195.99,195.86,3.64]
[1731004291086,11.52567817,196.0,195.94,9.01407817]
[1731004291483,2.5489,195.98,195.94,11.56337817]
[1731004291882,9.01407817,195.98,195.86,3.64]
[1731004292081,2.549,195.97,195.93,2.5494]
[1731004292478,2.5492,195.96,195.89,3.64]
[1731004292678,11.56327817,195.96,195.91,9.01407817]
[1731004293407,2.5492,195.96,195.92,2.5495]
[1731004293789,2.5492,195.96,195.91,2.5497]
[1731004294391,14.08430875,195.99,195.91,2.5497]
[1731004294592,2.5492,195.95,195.9,2.5498]
[1731004295491,2.5495,195.93,195.88,16.63440875]
[1731004295695,14.08430875,195.97,195.85,14.08430875]
[1731004295895,14.08430875,195.97,195.85,17.72430875]
[1731004296187,14.08430875,195.97,195.83,1.2736]
[1731004296188,14.08430875,195.91,195.83,4.9136]
[1731004296395,14.08430875,195.91,195.83,3.64]
[1731004297784,14.08430875,195.91,195.8,14.26661875]
[1731004298095,2.5505,195.85,195.8,6.37341]
[1731004298392,14.08430875,195.89,195.8,0.18231]
[1731004298694,14.08430875,195.86,195.8,0.18231]
[1731004298995,14.08430875,195.84,195.8,0.18231]
[1731004299196,2.6094,195.89,195.71,1.3525]
[1731004299197,14.08430875,195.81,195.71,1.3525]
[1731004299385,14.08430875,195.79,195.69,3.64]
[1731004299689,14.08430875,195.79,195.68,14.08430875]
[1731004299690,2.552,195.74,195.68,16.63690875]
[1731004299889,14.08430875,195.79,195.68,14.08430875]
[1731004300597,2.5517,195.77,195.71,2.5523]
[1731004301096,14.08430875,195.79,195.71,2.5523]
[1731004301494,3.64,195.84,195.71,2.5523]
[1731004301495,14.08430875,195.81,195.73,2.5521]
[1731004301796,2.5514,195.78,195.71,14.08430875]
[1731004302093,14.08430875,195.81,195.72,2.5522]
[1731004302397,2.5515,195.78,195.72,2.5522]
[1731004302589,14.08430875,195.81,195.72,2.5522]
[1731004302790,14.08430875,195.81,195.71,16.63660875]
[1731004302996,2.5516,195.77,195.71,16.63660875]
[1731004303594,2.5516,195.77,195.71,14.08430875]
[1731004303794,2.5516,195.77,195.72,2.5522]
[1731004304186,2.5513,195.79,195.73,2.552]
[1731004304394,14.08430875,195.83,195.73,2.552]
[1731004304689,14.08430875,195.83,195.71,14.08430875]
[1731004305796,2.5514,195.78,195.72,2.5521]
[1731004306393,2.5514,195.78,195.71,14.08430875]
[1731004306594,2.5514,195.78,195.73,2.552]
[1731004306798,14.08430875,195.8,195.67,3.64]
[1731004307002,14.08430875,195.8,195.72,2.5522]
[1731004307197,14.08430875,195.8,195.69,14.08430875]
[1731004307399,2.5516,195.77,195.69,14.08430875]
[1731004307702,14.08430875,195.8,195.71,2.5523]
[1731004308004,2.5519,195.75,195.69,3.62]
[1731004308303,14.08430875,195.77,195.66,3.8397]
[1731004308494,14.08430875,195.74,195.62,3.62]
[1731004308699,14.08430875,195.74,195.61,14.08430875]
[1731004308700,14.08430875,195.74,195.61,17.70430875]
[1731004308901,14.08430875,195.71,195.63,2.5532]
[1731004309899,14.08430875,195.71,195.6,3.62]
[1731004310700,2.5531,195.65,195.6,6.1737]
[1731004310896,14.08430875,195.71,195.58,14.08430875]
[1731004311096,14.08430875,195.71,195.59,3.62]
[1731004311301,14.08430875,195.71,195.65,2.5531]
[1731004312702,14.08430875,195.71,195.64,2.5532]
[1731004313206,2.5528,195.68,195.6,14.08430875]
[1731004313412,2.5528,195.68,195.63,2.5534]
[1731004314107,14.08430875,195.67,195.57,3.62]
[1731004314712,2.553,195.66,195.61,2.5536]
[1731004315213,2.5532,195.65,195.6,2.5537]
[1731004315408,14.08430875,195.64,195.4,36.78]
[1731004315603,14.08430875,195.64,195.53,14.08430875]
[1731004315903,2.5537,195.61,195.56,2.5542]
[1731004316608,16.63760875,195.64,195.59,2.5538]
[1731004316913,2.5533,195.64,195.59,2.5538]
[1731004317410,2.5536,195.62,195.57,2.554]
[1731004318107,14.08430875,195.64,195.52,14.08430875]
[1731004318412,3.81821176,195.69,195.6,2.5537]
[1731004318413,2.5532,195.65,195.6,2.5537]
[1731004319212,2.5528,195.68,195.58,14.08430875]
[1731004320812,2.5528,195.68,195.63,2.5533]
[1731004321503,2.5529,195.67,195.63,2.5533]
[1731004322105,16.68120875,195.7,195.58,14.08430875]
[1731004322305,14.08430875,195.7,195.61,14.08430875]
[1731004322512,14.08430875,195.72,195.61,14.08430875]
[1731004323211,14.08430875,195.72,195.57,2.5934]
[1731004323416,14.08430875,195.72,195.64,2.5532]
[1731004324013,2.5525,195.7,195.65,2.553]
[1731004324712,2.5511,195.81,195.76,2.5516]
[1731004325216,2.5511,195.81,195.73,3.62]
[1731004325518,14.08430875,195.81,195.71,3.62]
[1731004325812,14.08430875,195.78,195.7,1.281]
[1731004326009,2.5517,195.76,195.7,1.281]
[1731004326911,2.5516,195.77,195.72,2.5521]
[1731004327111,14.08430875,195.8,195.7,1.281]
[1731004327517,2.5513,195.79,195.74,2.5519]
[1731004327816,14.08430875,195.8,195.7,3.9789]
[1731004328021,2.5514,195.78,195.73,2.552]
[1731004328217,14.08430875,195.83,195.71,14.08430875]
[1731004328921,14.08430875,195.83,195.7,3.9789]
[1731004328922,14.08430875,195.85,195.7,3.9789]
[1731004329219,2.5507,195.84,195.75,14.08430875]
[1731004329520,2.5507,195.84,195.8,2.5511]
[1731004329717,3.62,195.98,195.76,3.62]
[1731004329917,14.08430875,195.91,195.8,14.08430875]
[1731004330717,2.55,195.89,195.84,2.5505]
[1731004331014,14.08430875,195.94,195.83,17.70430875]
[1731004331217,14.08430875,195.94,195.84,3.62]
[1731004331817,2.5497,195.91,195.85,2.5505]
[1731004332321,2.55,195.89,195.83,2.5506]
[1731004332527,2.55,195.89,195.85,3.62]
[1731004333815,2.5501,195.88,195.83,3.62]
[1731004334427,2.55,195.89,195.83,6.1707]
[1731004334628,14.08430875,195.91,195.82,3.62]
[1731004335127,2.5502,195.88,195.82,6.1709]
[1731004335526,2.5502,195.88,195.83,2.5507]
[1731004335725,2.5502,195.88,195.82,3.62]
[1731004335726,2.5501,195.89,195.82,3.62]
[1731004336130,14.08430875,195.91,195.82,2.5508]
[1731004336331,2.5502,195.88,195.83,3.62]
[1731004338126,14.08430875,195.91,195.83,3.62]
[1731004338425,2.5502,195.87,195.83,3.62]
[1731004338825,2.5502,195.87,195.83,6.1708]
[1731004340830,2.6292,195.95,195.81,4.0034]
[1731004341139,14.08430875,195.86,195.79,3.62]
[1731004341326,2.5511,195.81,195.75,14.08430875]
[1731004341534,2.5511,195.81,195.75,17.70430875]
[1731004341732,2.5511,195.81,195.75,20.25600875]
[1731004342222,2.5512,195.8,195.75,20.25600875]
[1731004342839,2.5512,195.8,195.75,17.70430875]
[1731004344038,2.5512,195.8,195.75,20.25600875]
[1731004344231,2.5512,195.8,195.75,16.63600875]
[1731004344928,2.551,195.82,195.77,2.5514]
[1731004345242,14.08430875,195.84,195.75,14.08430875]
[1731004345745,2.5511,195.81,195.76,2.5515]
[1731004346736,2.5509,195.83,195.77,2.5514]
[1731004346931,2.56217959,195.99,195.78,14.08430875]
[1731004347127,14.08430875,195.92,195.8,14.08430875]
[1731004347332,2.5501,195.88,195.84,2.5506]
[1731004347534,14.08430875,195.92,195.84,2.5506]
[1731004348236,2.5501,195.88,195.84,2.5506]
[1731004348442,14.08430875,195.92,195.84,2.5506]
[1731004349139,2.55,195.89,195.84,2.5506]
[1731004349639,1.2477,195.96,195.81,3.62]
[1731004349640,14.08430875,195.9,195.81,3.62]
[1731004349840,14.08430875,195.87,195.77,14.08430875]
[1731004350038,2.5507,195.84,195.79,2.5513]
[1731004350239,14.08430875,195.87,195.78,3.62]
[1731004350743,2.5509,195.83,195.78,6.1714]
[1731004350929,2.5509,195.83,195.78,3.62]
[1731004351841,2.5509,195.83,195.79,2.5513]
[1731004353533,14.08430875,195.87,195.77,14.08430875]
[1731004353741,14.08430875,195.84,195.76,2.5516]
[1731004354339,2.5509,195.82,195.78,2.5514]
[1731004354536,14.08430875,195.87,195.78,2.5514]
[1731004354730,2.6217,195.88,195.78,14.08430875]
[1731004354938,14.08430875,195.89,195.78,14.08430875]
[1731004355132,14.08430875,195.89,195.8,14.08430875]
[1731004355440,2.5502,195.88,195.83,2.5507]
[1731004355641,14.08430875,195.89,195.83,2.5507]
[1731004355841,3.62,195.95,195.83,2.5507]
[1731004355842,14.08430875,195.91,195.83,2.5507]
[1731004356042,2.5502,195.88,195.83,2.5507]
[1731004356542,2.5502,195.87,195.83,2.5507]
[1731004357535,14.08430875,195.94,195.83,14.08430875]
[1731004357944,2.55,195.89,195.84,2.5505]
[1731004358246,14.08430875,195.9,195.81,3.62]
[1731004358442,2.5505,195.86,195.81,6.171]
[1731004359036,14.08430875,195.9,195.81,6.171]
[1731004359037,2.5503,195.87,195.82,2.5509]
[1731004359247,14.08430875,195.93,195.83,14.08430875]
[1731004359448,14.08430875,195.96,195.81,3.62]
[1731004359748,14.08430875,195.96,195.85,14.08430875]
[1731004360450,2.5499,195.9,195.85,16.63470875]
[1731004360645,14.08430875,195.96,195.85,16.63470875]
[1731004361647,14.08430875,195.96,195.86,2.5503]
[1731004362255,2.5498,195.91,195.86,2.5503]
[1731004362841,2.5499,195.9,195.86,2.5503]
[1731004363040,14.08430875,195.96,195.86,2.5504]
[1731004363444,14.08430875,195.96,195.85,14.08430875]
[1731004363654,2.5493,195.95,195.9,2.5498]
[1731004363850,14.08430875,196.0,195.9,14.08430875]
[1731004364248,2.5489,195.97,195.92,2.5495]
[1731004364444,14.08430875,196.0,195.9,14.08430875]
[1731004364843,2.5489,195.98,195.93,2.5494]
[1731004365847,3.916,196.05,195.93,17.68430875]
[1731004366053,3.916,196.05,195.95,14.08430875]
[1731004366548,2.5486,196.0,195.95,2.5492]
[1731004367651,3.916,196.05,195.93,17.68430875]
[1731004367847,1.3477,196.05,195.95,14.08430875]
[1731004368052,36.76,196.18,195.96,1.3335]
[1731004368053,14.08430875,196.08,195.96,1.3335]
[1731004368252,14.08430875,196.08,195.96,3.8199]
[1731004368455,14.08430875,196.08,195.98,2.5488]
[1731004368651,14.08430875,196.08,195.96,3.8199]
[1731004368652,14.08430875,196.06,195.96,3.8199]
[1731004369352,14.08430875,196.06,195.74,15.32]
[1731004369353,14.08430875,195.96,195.77,14.08430875]
[1731004369550,2.5503,195.87,195.79,2.5513]
[1731004369954,2.5503,195.87,195.79,6.1513]
[1731004370350,14.08430875,195.93,195.79,6.1513]
[1731004370859,14.08430875,195.93,195.79,3.6]
[1731004371063,2.55,195.89,195.81,2.551]
[1731004371453,3.935,195.95,195.83,2.5507]
[1731004371756,1.3352,195.95,195.83,2.5507]
[1731004372154,2.5496,195.92,195.84,2.5506]
[1731004372458,3.6,196.01,195.84,2.5506]
[1731004372459,18.86361202,196.24,195.91,14.08430875]
[1731004372660,14.08430875,196.06,195.94,14.08430875]
[1731004372863,14.08430875,196.06,195.95,3.6]
[1731004373567,1.2415,196.08,195.95,3.6]
[1731004373863,2.5479,196.05,195.98,2.5488]
[1731004374059,15.32580875,196.08,195.95,3.6]
[1731004374564,15.32580875,196.08,195.96,1.2416]
[1731004374971,2.5477,196.07,196.0,2.5485]
[1731004375173,2.5477,196.07,196.01,3.6]
[1731004379181,22.5132192,196.11,196.01,3.6]
[1731004379379,22.5132192,196.08,195.92,25.1134192]
[1731004379582,22.5132192,196.04,195.93,3.6]
[1731004379777,22.5132192,196.08,195.92,2.6002]
[1731004379985,22.5132192,196.04,195.94,3.6]
[1731004380183,1.2714,196.07,195.94,3.6]
[1731004380380,2.5481,196.04,195.96,2.549]
[1731004380587,1.2714,196.13,195.99,22.5132192]
[1731004380778,1.2415,196.14,196.02,22.5132192]
[1731004380982,1.2415,196.14,196.04,2.5479]
[1731004381288,22.5132192,196.19,196.03,4.8659]
[1731004381581,1.3155,196.25,196.11,22.5132192]
[1731004381787,1.3155,196.25,196.04,1.2933]
[1731004381788,1.3155,196.25,196.15,22.5132192]
[1731004382092,1.3155,196.25,196.12,27.4113192]
[1731004382384,15.32,196.4,196.13,4.9057]
[1731004382590,2.619,196.33,196.18,22.5132192]
[1731004382778,2.619,196.33,196.13,6.199]
[1731004382779,2.5451,196.27,196.19,3.6]
[1731004383091,2.619,196.33,196.18,26.1132192]
[1731004383092,25.1322192,196.33,196.18,26.1132192]
[1731004383688,2.545,196.28,196.18,26.1132192]
[1731004383889,22.5132192,196.3,196.18,3.6]
[1731004384313,1.3155,196.33,196.21,22.5132192]
[1731004384486,1.2639,196.37,196.22,1.2984]
[1731004384688,1.2639,196.37,196.23,1.2871]
[1731004384885,23.7771192,196.37,196.24,3.6]
[1731004385386,1.3441,196.38,196.24,26.1132192]
[1731004386385,2.5438,196.37,196.28,2.5449]
[1731004386689,1.3441,196.38,196.24,26.1132192]
[1731004386889,22.5132192,196.42,196.28,22.5132192]
[1731004387090,2.5436,196.38,196.28,22.5132192]
[1731004387279,1.2244,196.43,196.34,22.5132192]
[1731004387482,1.2244,196.43,196.35,3.6]
[1731004387684,2.5433,196.41,196.35,3.6]
[1731004388084,18.86361202,196.46,196.4,22.5132192]
[1731004388282,18.86361202,196.46,196.36,1.2287]
[1731004388494,18.86361202,196.46,196.37,3.6]
[1731004389295,21.40631202,196.46,196.37,3.6]
[1731004389787,2.5428,196.44,196.37,3.6]
[1731004389992,18.86361202,196.46,196.35,22.5132192]
[1731004390198,18.86361202,196.46,196.36,3.6]
[1731004390494,18.86361202,196.46,196.34,22.5132192]
[1731004390694,18.86361202,196.46,196.37,22.5132192]
[1731004390995,2.543,196.43,196.34,22.5132192]
[1731004391299,18.86361202,196.46,196.4,22.5132192]
[1731004391498,18.86361202,196.46,196.43,22.5132192]
[1731004391686,1.3144,196.53,196.43,22.5132192]
[1731004392396,58.98128132,196.58,196.43,22.5132192]
[1731004392693,58.98128132,196.58,196.39,1.2483]
[1731004392694,58.98128132,196.58,196.46,22.5132192]
[1731004393001,58.98128132,196.58,196.47,2.6303]
[1731004393298,22.5132192,196.57,196.47,1.3348]
[1731004393592,58.98128132,196.58,196.5,22.5132192]
[1731004393790,58.98128132,196.58,196.51,2.4978]
[1731004393990,43.01331505,196.54,196.53,22.5132192]
[1731004394198,58.98128132,196.58,196.53,22.5132192]
[1731004394686,1.3122,196.65,196.53,22.5132192]
[1731004395388,1.3122,196.65,196.51,2.4978]
[1731004395589,1.3122,196.65,196.53,22.5132192]
[1731004396189,2.5408,196.6,196.53,22.5132192]
[1731004396390,1.3122,196.65,196.51,2.4978]
[1731004396391,23.8254192,196.65,196.51,7.4178]
[1731004396590,23.8254192,196.65,196.47,1.3348]
[1731004396791,2.5414,196.56,196.47,1.3348]
[1731004396997,22.5132192,196.61,196.47,1.3348]
[1731004397596,1.2424,196.6,196.47,1.3348]
[1731004397898,2.5413,196.57,196.47,1.3348]
[1731004398098,1.2424,196.6,196.47,1.3348]
[1731004398602,2.5417,196.53,196.47,1.3348]
[1731004398794,22.5132192,196.58,196.47,1.3348]
[1731004398989,1.214,196.57,196.4,26.3384192]
[1731004399192,22.5132192,196.55,196.41,4.92]
[1731004399394,1.2929,196.54,196.41,4.92]
[1731004399596,22.5132192,196.52,196.41,4.92]
[1731004400397,22.5132192,196.49,196.36,1.2946]
[1731004400602,1.267,196.48,196.36,1.2946]
[1731004400898,2.5432,196.42,196.36,1.2946]
[1731004401397,2.5432,196.42,196.34,27.4332192]
[1731004401398,1.2929,196.54,196.4,22.5132192]
[1731004401598,22.5132192,196.61,196.47,22.5132192]
[1731004401797,2.5415,196.55,196.47,22.5132192]
[1731004402004,22.5132192,196.61,196.47,22.5132192]
[1731004402395,2.5416,196.54,196.47,22.5132192]
[1731004402604,22.5132192,196.61,196.44,22.5132192]
[1731004403100,2.5417,196.53,196.44,22.5132192]
[1731004403302,5.18,196.61,196.47,22.5132192]
[1731004403500,22.5132192,196.6,196.43,23.7603192]
[1731004403700,22.5132192,196.56,196.43,23.7603192]
[1731004403897,22.5132192,196.56,196.43,1.2471]
[1731004404098,22.5132192,196.56,196.33,1.1983]
[1731004404099,22.5132192,196.53,196.33,1.1983]
[1731004404300,2.4977,196.52,196.36,22.5132192]
[1731004404503,5.0395,196.52,196.42,2.543]
[1731004404804,2.4977,196.52,196.39,22.5132192]
[1731004405197,22.5132192,196.5,196.36,22.5132192]
[1731004405703,2.5429,196.44,196.37,2.5437]
[1731004406111,2.5429,196.44,196.36,22.5132192]
[1731004406308,22.5132192,196.47,196.3,22.5132192]
[1731004406501,6.4018,196.46,196.3,22.5132192]
[1731004406702,1.2218,196.46,196.3,22.5132192]
[1731004407110,1.2218,196.46,196.23,2.4049]
[1731004407111,22.5132192,196.36,196.23,2.4049]
[1731004407410,1.2712,196.35,196.21,22.5132192]
[1731004407904,1.2712,196.35,196.2,2.5459]
[1731004407905,2.545,196.27,196.2,2.5459]
[1731004408111,2.545,196.27,196.18,22.5132192]
[1731004408399,22.5132192,196.33,196.18,22.5132192]
[1731004409409,22.5132192,196.3,196.15,22.5132192]
[1731004409601,36.55783983,196.29,196.14,36.55783983]
[1731004409904,5.18,196.28,196.14,39.10443983]
[1731004410304,2.5454,196.24,196.16,2.5465]
[1731004410500,36.55783983,196.33,196.17,36.55783983]
[1731004410700,5.18,196.32,196.17,36.55783983]
[1731004411103,36.55783983,196.3,196.14,36.55783983]
[1731004411402,36.55783983,196.3,196.17,36.55783983]
[1731004411708,2.545,196.28,196.2,2.5459]
[1731004411905,1.2218,196.34,196.21,36.55783983]
[1731004412411,1.2218,196.34,196.18,36.55783983]